[Event "Early-Titled-Tuesday-Blitz-April-16-2024"]
[Site "Chess.com"]
[Date "2024.04.16"]
[Round "7"]
[White "cthulhuuu"]
[Black "YegoryoCh"]
[Result "0-1"]
[WhiteElo "2426"]
[BlackElo "2573"]
[TimeControl "180+1"]
[EndTime "9:20:57 PDT"]
[Termination "YegoryoCh won on time"]

1. e4 {[%clk 0:03:00.1]} 1... e5 {[%clk 0:02:57.6]} 2. Nf3 {[%clk 0:03:00.3]}
2... Nc6 {[%clk 0:02:57.4]} 3. Bb5 {[%clk 0:03:00.5]} 3... a6 {[%clk 0:02:57.7]}
4. Bxc6 {[%clk 0:03:00.8]} 4... dxc6 {[%clk 0:02:57.9]} 5. O-O {[%clk
0:03:01.7]} 5... Bg4 {[%clk 0:02:53.6]} 6. h3 {[%clk 0:03:02.3]} 6... h5 {[%clk
0:02:53.9]} 7. d3 {[%clk 0:03:02.8]} 7... Qf6 {[%clk 0:02:53.6]} 8. Nbd2 {[%clk
0:03:03.5]} 8... Ne7 {[%clk 0:02:50.6]} 9. Re1 {[%clk 0:03:04]} 9... Bxf3 {[%clk
0:02:42.5]} 10. Nxf3 {[%clk 0:03:03.1]} 10... Ng6 {[%clk 0:02:41.3]} 11. d4
{[%clk 0:02:57.9]} 11... Bd6 {[%clk 0:02:34.2]} 12. c3 {[%clk 0:02:41.3]} 12...
Qe6 {[%clk 0:02:28.7]} 13. dxe5 {[%clk 0:02:31.5]} 13... Nxe5 {[%clk 0:02:29.6]}
14. Nxe5 {[%clk 0:02:31.5]} 14... Qxe5 {[%clk 0:02:27.2]} 15. f4 {[%clk
0:02:31.3]} 15... Qb5 {[%clk 0:02:23.4]} 16. Qb3 {[%clk 0:02:28.3]} 16... O-O
{[%clk 0:01:35.7]} 17. e5 {[%clk 0:02:22.1]} 17... Bc5+ {[%clk 0:01:35.9]} 18.
Be3 {[%clk 0:02:21.9]} 18... Bxe3+ {[%clk 0:01:35.7]} 19. Rxe3 {[%clk
0:02:22.8]} 19... Rfd8 {[%clk 0:01:36.3]} 20. Qxb5 {[%clk 0:02:08]} 20... axb5
{[%clk 0:01:35.5]} 21. Re2 {[%clk 0:02:08.3]} 21... g6 {[%clk 0:01:28.7]} 22. a3
{[%clk 0:02:07.3]} 22... h4 {[%clk 0:01:25.1]} 23. Rae1 {[%clk 0:02:06.7]} 23...
Ra4 {[%clk 0:01:24.2]} 24. e6 {[%clk 0:01:59]} 24... f6 {[%clk 0:01:23.4]} 25.
Rd2 {[%clk 0:01:42.3]} 25... Rxd2 {[%clk 0:01:05.1]} 26. e7 {[%clk 0:01:42]}
26... Ra8 {[%clk 0:01:05.7]} 27. e8=Q+ {[%clk 0:01:38.3]} 27... Rxe8 {[%clk
0:01:05.8]} 28. Rxe8+ {[%clk 0:01:38.4]} 28... Kf7 {[%clk 0:01:06.7]} 29. Rc8
{[%clk 0:01:38.3]} 29... Rxb2 {[%clk 0:01:02.7]} 30. Rxc7+ {[%clk 0:01:38.5]}
30... Ke6 {[%clk 0:01:03.5]} 31. Rxb7 {[%clk 0:01:39]} 31... Rb3 {[%clk
0:01:04.1]} 32. Ra7 {[%clk 0:00:37.8]} 32... Rxc3 {[%clk 0:01:02.5]} 33. a4
{[%clk 0:00:38.3]} 33... bxa4 {[%clk 0:00:59.8]} 34. Rxa4 {[%clk 0:00:37.7]}
34... Rc2 {[%clk 0:00:59.7]} 35. f5+ {[%clk 0:00:26.1]} 35... Kxf5 {[%clk
0:00:59.9]} 36. Rxh4 {[%clk 0:00:26.1]} 36... c5 {[%clk 0:01:00.6]} 37. Rh8
{[%clk 0:00:24.5]} 37... c4 {[%clk 0:00:58.2]} 38. Rc8 {[%clk 0:00:16.5]} 38...
Kf4 {[%clk 0:00:57.7]} 39. Rc6 {[%clk 0:00:15.1]} 39... Kg3 {[%clk 0:00:50.2]}
40. Kf1 {[%clk 0:00:15.5]} 40... Rf2+ {[%clk 0:00:47.3]} 41. Ke1 {[%clk
0:00:15.5]} 41... Rf4 {[%clk 0:00:47.7]} 0-1

[Event "Early-Titled-Tuesday-Blitz-April-16-2024"]
[Site "Chess.com"]
[Date "2024.04.16"]
[Round "7"]
[White "GlavkonVVS"]
[Black "FREZZY23"]
[Result "1-0"]
[WhiteElo "2585"]
[BlackElo "2433"]
[TimeControl "180+1"]
[EndTime "9:20:58 PDT"]
[Termination "GlavkonVVS won by resignation"]

1. c4 {[%clk 0:03:00.9]} 1... Nf6 {[%clk 0:02:57.2]} 2. Nc3 {[%clk 0:03:00.8]}
2... g6 {[%clk 0:02:57.2]} 3. Nf3 {[%clk 0:02:59.6]} 3... Bg7 {[%clk 0:02:57.3]}
4. d4 {[%clk 0:03:00.1]} 4... O-O {[%clk 0:02:55.3]} 5. Bg5 {[%clk 0:03:00.6]}
5... d6 {[%clk 0:02:50.2]} 6. e3 {[%clk 0:03:00.5]} 6... c5 {[%clk 0:02:49.8]}
7. Be2 {[%clk 0:02:59.6]} 7... Nc6 {[%clk 0:02:47.8]} 8. d5 {[%clk 0:02:58.9]}
8... Na5 {[%clk 0:02:46.7]} 9. Nd2 {[%clk 0:02:52.8]} 9... a6 {[%clk 0:02:43.1]}
10. a4 {[%clk 0:02:52]} 10... Rb8 {[%clk 0:02:40.4]} 11. O-O {[%clk 0:02:51]}
11... Qc7 {[%clk 0:02:34.7]} 12. h4 {[%clk 0:02:46.2]} 12... e6 {[%clk
0:02:34.6]} 13. e4 {[%clk 0:02:43.7]} 13... exd5 {[%clk 0:02:34.2]} 14. exd5
{[%clk 0:02:37.1]} 14... Bf5 {[%clk 0:02:33.6]} 15. g4 {[%clk 0:02:34]} 15...
Bd7 {[%clk 0:02:29.8]} 16. h5 {[%clk 0:02:28]} 16... Rfe8 {[%clk 0:02:20.7]} 17.
h6 {[%clk 0:02:24.8]} 17... Bh8 {[%clk 0:02:19.4]} 18. Bf3 {[%clk 0:02:20.9]}
18... Qc8 {[%clk 0:02:15.5]} 19. Bxf6 {[%clk 0:02:17.6]} 19... Bxf6 {[%clk
0:02:14.8]} 20. Nce4 {[%clk 0:02:14.6]} 20... Be5 {[%clk 0:02:14]} 21. b3 {[%clk
0:02:12.1]} 21... b5 {[%clk 0:02:12.9]} 22. axb5 {[%clk 0:02:11.2]} 22... Nb7
{[%clk 0:02:04.6]} 23. Rxa6 {[%clk 0:02:09.8]} 23... Qd8 {[%clk 0:01:55.5]} 24.
g5 {[%clk 0:02:00.8]} 24... Bf5 {[%clk 0:01:49]} 25. Bg4 {[%clk 0:01:57.5]}
25... Qd7 {[%clk 0:01:42.9]} 26. Bxf5 {[%clk 0:01:35.9]} 26... Qxf5 {[%clk
0:01:39.4]} 27. Qf3 {[%clk 0:01:33.8]} 27... Bf4 {[%clk 0:01:21.1]} 28. Kg2
{[%clk 0:01:27.5]} 28... Re5 {[%clk 0:01:13.8]} 29. Rfa1 {[%clk 0:01:19.5]}
29... Rbe8 {[%clk 0:01:11.9]} 30. Ra8 {[%clk 0:01:18]} 30... Nd8 {[%clk
0:01:06.6]} 31. Kf1 {[%clk 0:01:05.1]} 31... f6 {[%clk 0:00:45.3]} 32. Nxf6+
{[%clk 0:01:02.5]} 32... Kf7 {[%clk 0:00:43.3]} 33. Nxe8 {[%clk 0:01:01.8]}
33... Kxe8 {[%clk 0:00:43.3]} 34. Rd1 {[%clk 0:00:40.9]} 34... Re7 {[%clk
0:00:20.8]} 35. b6 {[%clk 0:00:36.7]} 35... Kd7 {[%clk 0:00:17.5]} 36. Ra7+
{[%clk 0:00:35.5]} 36... Ke8 {[%clk 0:00:16.9]} 37. Rxe7+ {[%clk 0:00:36.4]}
37... Kxe7 {[%clk 0:00:17.8]} 38. Qe4+ {[%clk 0:00:35.6]} 38... Qxe4 {[%clk
0:00:16.7]} 39. Nxe4 {[%clk 0:00:35.8]} 39... Kd7 {[%clk 0:00:17.3]} 40. Ra1
{[%clk 0:00:35.5]} 40... Nb7 {[%clk 0:00:15.4]} 41. Ra7 {[%clk 0:00:35]} 41...
Kc8 {[%clk 0:00:16.3]} 42. Ra8+ {[%clk 0:00:35]} 42... Kd7 {[%clk 0:00:16.1]}
43. Rh8 {[%clk 0:00:35]} 1-0

[Event "Early-Titled-Tuesday-Blitz-April-16-2024"]
[Site "Chess.com"]
[Date "2024.04.16"]
[Round "7"]
[White "RTFrancisco"]
[Black "dvglko"]
[Result "0-1"]
[WhiteElo "2620"]
[BlackElo "2496"]
[TimeControl "180+1"]
[EndTime "9:21:00 PDT"]
[Termination "dvglko won by resignation"]

1. e4 {[%clk 0:02:55.3]} 1... c5 {[%clk 0:03:00.3]} 2. Nf3 {[%clk 0:02:54.2]}
2... d6 {[%clk 0:03:00.3]} 3. d4 {[%clk 0:02:53.8]} 3... cxd4 {[%clk 0:03:01]}
4. Nxd4 {[%clk 0:02:54.5]} 4... Nf6 {[%clk 0:03:00.1]} 5. Nc3 {[%clk 0:02:54.9]}
5... a6 {[%clk 0:03:00.3]} 6. Bg5 {[%clk 0:02:54.4]} 6... e6 {[%clk 0:02:58.4]}
7. f4 {[%clk 0:02:53.8]} 7... Be7 {[%clk 0:02:57.1]} 8. Qf3 {[%clk 0:02:53.5]}
8... Qc7 {[%clk 0:02:56]} 9. O-O-O {[%clk 0:02:53]} 9... Nbd7 {[%clk 0:02:54.9]}
10. g4 {[%clk 0:02:52.5]} 10... h6 {[%clk 0:02:53.5]} 11. Bxf6 {[%clk
0:02:47.1]} 11... Bxf6 {[%clk 0:02:54.4]} 12. h4 {[%clk 0:02:45.7]} 12... Nb6
{[%clk 0:02:53.8]} 13. g5 {[%clk 0:02:45.3]} 13... Bxd4 {[%clk 0:02:53.2]} 14.
Rxd4 {[%clk 0:02:44.3]} 14... Qc5 {[%clk 0:02:53.5]} 15. Qd3 {[%clk 0:02:22]}
15... hxg5 {[%clk 0:02:50.8]} 16. fxg5 {[%clk 0:02:18.6]} 16... Rxh4 {[%clk
0:02:40.5]} 17. Rxh4 {[%clk 0:02:19.5]} 17... Qxg5+ {[%clk 0:02:40.6]} 18. Qd2
{[%clk 0:02:05.5]} 18... Qxh4 {[%clk 0:02:40]} 19. Rxd6 {[%clk 0:02:03.9]} 19...
Nd7 {[%clk 0:02:24.6]} 20. Rd3 {[%clk 0:01:39.7]} 20... Qf6 {[%clk 0:01:49.8]}
21. Be2 {[%clk 0:01:31.3]} 21... Ne5 {[%clk 0:01:45.6]} 22. Rh3 {[%clk
0:01:28.2]} 22... g6 {[%clk 0:01:43.8]} 23. Na4 {[%clk 0:01:17.6]} 23... Bd7
{[%clk 0:01:37.4]} 24. Nb6 {[%clk 0:01:04.6]} 24... Rd8 {[%clk 0:01:35.1]} 25.
Qc3 {[%clk 0:01:02.1]} 25... Qg5+ {[%clk 0:01:19.4]} 26. Re3 {[%clk 0:00:54.8]}
26... Bc6 {[%clk 0:01:01.3]} 27. b3 {[%clk 0:00:49.5]} 27... Nd7 {[%clk
0:00:23.9]} 28. Nc4 {[%clk 0:00:47.7]} 28... Ke7 {[%clk 0:00:12.5]} 29. Kb2
{[%clk 0:00:39.5]} 29... Bb5 {[%clk 0:00:12.2]} 30. e5 {[%clk 0:00:25.2]} 30...
Bxc4 {[%clk 0:00:10.4]} 31. Bxc4 {[%clk 0:00:26.1]} 31... Kf8 {[%clk 0:00:05.1]}
32. Qb4+ {[%clk 0:00:16.6]} 32... Kg7 {[%clk 0:00:04.7]} 33. Qxb7 {[%clk
0:00:16.3]} 33... Qxe3 {[%clk 0:00:03.2]} 34. Qc7 {[%clk 0:00:15.2]} 34... Qxe5+
{[%clk 0:00:03.6]} 35. Qxe5+ {[%clk 0:00:15.1]} 35... Nxe5 {[%clk 0:00:04.5]}
0-1

[Event "Early-Titled-Tuesday-Blitz-April-16-2024"]
[Site "Chess.com"]
[Date "2024.04.16"]
[Round "7"]
[White "Flawless_Fighter"]
[Black "wonderfultime"]
[Result "0-1"]
[WhiteElo "2760"]
[BlackElo "2990"]
[TimeControl "180+1"]
[EndTime "9:21:02 PDT"]
[Termination "wonderfultime won on time"]

1. e4 {[%clk 0:03:00.9]} 1... c5 {[%clk 0:02:57.6]} 2. Nf3 {[%clk 0:03:00.8]}
2... Nf6 {[%clk 0:02:58.3]} 3. Nc3 {[%clk 0:03:00.4]} 3... d5 {[%clk 0:02:58.4]}
4. exd5 {[%clk 0:02:57.8]} 4... Nxd5 {[%clk 0:02:59.3]} 5. Bb5+ {[%clk 0:02:58]}
5... Bd7 {[%clk 0:02:59.7]} 6. Ne5 {[%clk 0:02:58.7]} 6... Nf6 {[%clk
0:03:00.3]} 7. Nxd7 {[%clk 0:02:47.8]} 7... Nbxd7 {[%clk 0:03:01.2]} 8. O-O
{[%clk 0:02:46.2]} 8... a6 {[%clk 0:02:59.5]} 9. Be2 {[%clk 0:02:46.2]} 9... e6
{[%clk 0:02:59.9]} 10. Bf3 {[%clk 0:02:46.4]} 10... Qc7 {[%clk 0:03:00.1]} 11.
g3 {[%clk 0:02:43.3]} 11... Bd6 {[%clk 0:02:51.9]} 12. d3 {[%clk 0:02:43]} 12...
O-O {[%clk 0:02:48.9]} 13. Bg5 {[%clk 0:02:42.5]} 13... Be5 {[%clk 0:02:43.8]}
14. Qe2 {[%clk 0:02:39.2]} 14... h6 {[%clk 0:02:36.6]} 15. Bd2 {[%clk
0:02:38.5]} 15... Rab8 {[%clk 0:02:33.5]} 16. Rae1 {[%clk 0:02:36.5]} 16... b5
{[%clk 0:02:33.6]} 17. Bg2 {[%clk 0:02:27.4]} 17... Rfd8 {[%clk 0:02:31.6]} 18.
Kh1 {[%clk 0:02:24.1]} 18... c4 {[%clk 0:02:17.6]} 19. dxc4 {[%clk 0:02:09.4]}
19... Qxc4 {[%clk 0:02:17.5]} 20. Qxc4 {[%clk 0:01:59.3]} 20... bxc4 {[%clk
0:02:18.4]} 21. Bc1 {[%clk 0:01:43]} 21... Bxc3 {[%clk 0:02:06.1]} 22. bxc3
{[%clk 0:01:43.1]} 22... Nc5 {[%clk 0:02:07]} 23. Be3 {[%clk 0:01:36.2]} 23...
Na4 {[%clk 0:02:04.1]} 24. Bd4 {[%clk 0:01:33.1]} 24... Rb2 {[%clk 0:02:04.7]}
25. Bc6 {[%clk 0:01:27.3]} 25... Rxd4 {[%clk 0:01:55.1]} 26. cxd4 {[%clk
0:01:25.9]} 26... Nc3 {[%clk 0:01:56]} 27. a4 {[%clk 0:01:04.8]} 27... a5 {[%clk
0:01:46.3]} 28. Kg2 {[%clk 0:01:00]} 28... Nfd5 {[%clk 0:01:43]} 29. Bxd5 {[%clk
0:00:57.6]} 29... Nxd5 {[%clk 0:01:38.1]} 30. Rb1 {[%clk 0:00:52.1]} 30... Rxc2
{[%clk 0:01:38]} 31. Rfc1 {[%clk 0:00:52.5]} 31... Ra2 {[%clk 0:01:38.3]} 32.
Ra1 {[%clk 0:00:49.2]} 32... Rd2 {[%clk 0:01:38.3]} 33. h4 {[%clk 0:00:33.5]}
33... c3 {[%clk 0:01:36.8]} 34. Kf3 {[%clk 0:00:31.6]} 34... Rxd4 {[%clk
0:01:36.8]} 35. Rc2 {[%clk 0:00:29.9]} 35... g5 {[%clk 0:01:33.1]} 36. hxg5
{[%clk 0:00:29.6]} 36... hxg5 {[%clk 0:01:34]} 37. Ra3 {[%clk 0:00:25.7]} 37...
Kg7 {[%clk 0:01:31.7]} 38. Ke2 {[%clk 0:00:19.7]} 38... g4 {[%clk 0:01:32]} 39.
Ra1 {[%clk 0:00:08.9]} 39... Kg6 {[%clk 0:01:31.9]} 40. Ra3 {[%clk 0:00:08.9]}
40... Kf5 {[%clk 0:01:32]} 41. Ra1 {[%clk 0:00:09.7]} 41... e5 {[%clk 0:01:29]}
42. Rd1 {[%clk 0:00:07.5]} 42... Ke4 {[%clk 0:01:29.1]} 43. Rh1 {[%clk
0:00:03.1]} 43... f5 {[%clk 0:01:27.3]} 44. Rh8 {[%clk 0:00:03]} 44... f4 {[%clk
0:01:27.8]} 45. gxf4 {[%clk 0:00:03.1]} 45... exf4 {[%clk 0:01:16.5]} 46. Re8+
{[%clk 0:00:03.2]} 46... Kf5 {[%clk 0:01:17.1]} 47. Rc8 {[%clk 0:00:02.3]} 47...
Rxa4 {[%clk 0:01:15.5]} 48. Rc5 {[%clk 0:00:02.9]} 48... Ke4 {[%clk 0:01:15.9]}
49. Rc8 {[%clk 0:00:03.3]} 49... f3+ {[%clk 0:01:16]} 50. Kd1 {[%clk 0:00:03.5]}
50... Kd3 {[%clk 0:01:15.3]} 51. Rd8 {[%clk 0:00:01.7]} 51... Rd4 {[%clk
0:01:14.3]} 52. Kc1 {[%clk 0:00:01.2]} 52... Nb4 {[%clk 0:01:11.1]} 0-1

[Event "Early-Titled-Tuesday-Blitz-April-16-2024"]
[Site "Chess.com"]
[Date "2024.04.16"]
[Round "7"]
[White "VD_coach"]
[Black "chess_blitz00"]
[Result "1-0"]
[WhiteElo "2643"]
[BlackElo "2513"]
[TimeControl "180+1"]
[EndTime "9:21:02 PDT"]
[Termination "VD_coach won by checkmate"]

1. d4 {[%clk 0:03:00.9]} 1... d6 {[%clk 0:02:58.1]} 2. Nf3 {[%clk 0:03:00.5]}
2... Bf5 {[%clk 0:02:54.2]} 3. g3 {[%clk 0:02:58.3]} 3... Nc6 {[%clk 0:02:48.8]}
4. Bg2 {[%clk 0:02:58.2]} 4... e5 {[%clk 0:02:48.3]} 5. O-O {[%clk 0:02:57.1]}
5... Be7 {[%clk 0:02:47.2]} 6. d5 {[%clk 0:02:41.2]} 6... Nb8 {[%clk 0:02:47.4]}
7. c4 {[%clk 0:02:36.1]} 7... a5 {[%clk 0:02:46.5]} 8. Nc3 {[%clk 0:02:35.9]}
8... Na6 {[%clk 0:02:46.8]} 9. e4 {[%clk 0:02:33.2]} 9... Bg4 {[%clk 0:02:47]}
10. h3 {[%clk 0:02:33]} 10... Bxf3 {[%clk 0:02:46.2]} 11. Qxf3 {[%clk
0:02:26.3]} 11... Nf6 {[%clk 0:02:45.5]} 12. Be3 {[%clk 0:02:23.8]} 12... Nd7
{[%clk 0:02:44.8]} 13. b3 {[%clk 0:02:17.6]} 13... O-O {[%clk 0:02:31.3]} 14. h4
{[%clk 0:02:16.5]} 14... Ndc5 {[%clk 0:02:22.8]} 15. Bh3 {[%clk 0:02:12.6]}
15... Nb4 {[%clk 0:02:21.1]} 16. Qe2 {[%clk 0:02:06.4]} 16... g6 {[%clk
0:02:10.7]} 17. a3 {[%clk 0:01:52.5]} 17... Nba6 {[%clk 0:01:41.3]} 18. Rab1
{[%clk 0:01:47.3]} 18... a4 {[%clk 0:01:39.4]} 19. b4 {[%clk 0:01:44]} 19... Nb3
{[%clk 0:01:39.4]} 20. Qd3 {[%clk 0:01:22.6]} 20... Nd4 {[%clk 0:01:36.4]} 21.
Bxd4 {[%clk 0:01:20.9]} 21... exd4 {[%clk 0:01:37.3]} 22. Qxd4 {[%clk
0:01:18.8]} 22... Bf6 {[%clk 0:01:37.5]} 23. Qd3 {[%clk 0:01:18.6]} 23... Nb8
{[%clk 0:01:27.7]} 24. Qc2 {[%clk 0:01:12]} 24... Nd7 {[%clk 0:01:25.8]} 25.
Nxa4 {[%clk 0:01:09.9]} 25... Ne5 {[%clk 0:01:17.3]} 26. f4 {[%clk 0:01:03.7]}
26... Nd7 {[%clk 0:01:14.8]} 27. Rf3 {[%clk 0:00:55.7]} 27... Bd4+ {[%clk
0:01:09.5]} 28. Kg2 {[%clk 0:00:55.3]} 28... Nb6 {[%clk 0:01:04.3]} 29. Nxb6
{[%clk 0:00:53]} 29... cxb6 {[%clk 0:01:01.7]} 30. Rd1 {[%clk 0:00:46.5]} 30...
Bg7 {[%clk 0:01:01.4]} 31. Rdf1 {[%clk 0:00:39.1]} 31... Qc7 {[%clk 0:01:00.9]}
32. e5 {[%clk 0:00:36.4]} 32... dxe5 {[%clk 0:01:01]} 33. f5 {[%clk 0:00:36.7]}
33... Rad8 {[%clk 0:00:53]} 34. fxg6 {[%clk 0:00:24.4]} 34... fxg6 {[%clk
0:00:49.4]} 35. Be6+ {[%clk 0:00:21.5]} 35... Kh8 {[%clk 0:00:49.6]} 36. Rxf8+
{[%clk 0:00:20]} 36... Rxf8 {[%clk 0:00:50.5]} 37. Rxf8+ {[%clk 0:00:20]} 37...
Bxf8 {[%clk 0:00:51.4]} 38. Qf2 {[%clk 0:00:19.9]} 38... Kg7 {[%clk 0:00:48.7]}
39. g4 {[%clk 0:00:17]} 39... e4 {[%clk 0:00:37.6]} 40. Qd4+ {[%clk 0:00:15.4]}
40... Kh6 {[%clk 0:00:35.4]} 41. g5+ {[%clk 0:00:15.5]} 41... Kh5 {[%clk
0:00:35.5]} 42. Kh3 {[%clk 0:00:14.1]} 42... Qf4 {[%clk 0:00:26.3]} 43. Qd1+
{[%clk 0:00:12.5]} 43... Qf3+ {[%clk 0:00:26.4]} 44. Qxf3+ {[%clk 0:00:12.7]}
44... exf3 {[%clk 0:00:26.9]} 45. Bg4# {[%clk 0:00:13.3]} 1-0

[Event "Early-Titled-Tuesday-Blitz-April-16-2024"]
[Site "Chess.com"]
[Date "2024.04.16"]
[Round "7"]
[White "Vahe_Danielyan"]
[Black "TheoSlade"]
[Result "1-0"]
[WhiteElo "2613"]
[BlackElo "2385"]
[TimeControl "180+1"]
[EndTime "9:21:03 PDT"]
[Termination "Vahe_Danielyan won by resignation"]

1. d4 {[%clk 0:02:53.2]} 1... d5 {[%clk 0:02:59.9]} 2. c4 {[%clk 0:02:52.7]}
2... e6 {[%clk 0:03:00.6]} 3. Nc3 {[%clk 0:02:52.5]} 3... a6 {[%clk 0:03:01.3]}
4. cxd5 {[%clk 0:02:53.4]} 4... exd5 {[%clk 0:03:02]} 5. Bf4 {[%clk 0:02:52.8]}
5... Nf6 {[%clk 0:03:01.2]} 6. Qc2 {[%clk 0:02:52.1]} 6... Bd6 {[%clk
0:02:53.2]} 7. Bg3 {[%clk 0:02:51.1]} 7... O-O {[%clk 0:02:34.5]} 8. e3 {[%clk
0:02:49.9]} 8... Nbd7 {[%clk 0:02:24]} 9. Nf3 {[%clk 0:02:49]} 9... Re8 {[%clk
0:02:22.3]} 10. Bd3 {[%clk 0:02:49]} 10... Nf8 {[%clk 0:02:19.8]} 11. Ne5 {[%clk
0:02:43.3]} 11... Ne6 {[%clk 0:02:10.7]} 12. O-O {[%clk 0:02:42.3]} 12... g6
{[%clk 0:02:07.7]} 13. Bh4 {[%clk 0:02:41.2]} 13... Ng7 {[%clk 0:02:04.1]} 14.
Nxd5 {[%clk 0:02:33.6]} 14... Bxe5 {[%clk 0:01:55.1]} 15. dxe5 {[%clk
0:02:33.1]} 15... Qxd5 {[%clk 0:01:55.6]} 16. Bxf6 {[%clk 0:02:29.5]} 16... c6
{[%clk 0:01:46.2]} 17. Bc4 {[%clk 0:02:28.2]} 17... Qd7 {[%clk 0:01:45.6]} 18.
Rfd1 {[%clk 0:02:25.3]} 18... Qc7 {[%clk 0:01:44.9]} 19. Rd2 {[%clk 0:02:21.7]}
19... Nh5 {[%clk 0:01:39.2]} 20. Rad1 {[%clk 0:02:19.9]} 20... Nxf6 {[%clk
0:01:34.2]} 21. exf6 {[%clk 0:02:20.8]} 21... Bf5 {[%clk 0:01:34.3]} 22. Qb3
{[%clk 0:02:17.3]} 22... b5 {[%clk 0:01:30.7]} 23. Be2 {[%clk 0:02:16.6]} 23...
Qe5 {[%clk 0:01:21.8]} 24. Rd6 {[%clk 0:02:14.5]} 24... Be6 {[%clk 0:01:19.1]}
25. Qc3 {[%clk 0:02:11.5]} 25... Qxc3 {[%clk 0:01:18.7]} 26. bxc3 {[%clk
0:02:12.4]} 26... Bxa2 {[%clk 0:01:13.8]} 27. Rxc6 {[%clk 0:02:12.5]} 27... Re6
{[%clk 0:01:02.7]} 28. Rxe6 {[%clk 0:02:09.2]} 28... Bxe6 {[%clk 0:01:03.2]} 29.
Bf3 {[%clk 0:02:09.9]} 29... Rb8 {[%clk 0:00:54.9]} 30. Rd6 {[%clk 0:02:08.5]}
30... a5 {[%clk 0:00:49.2]} 31. Ra6 {[%clk 0:02:06.4]} 31... a4 {[%clk 0:00:49]}
32. Bc6 {[%clk 0:02:05.6]} 32... h6 {[%clk 0:00:43.3]} 33. f3 {[%clk 0:02:01.2]}
33... Bc4 {[%clk 0:00:33.7]} 34. Ra7 {[%clk 0:01:58.3]} 34... Rb6 {[%clk
0:00:30.2]} 35. Bd7 {[%clk 0:01:32.1]} 35... Rxf6 {[%clk 0:00:28.9]} 36. e4
{[%clk 0:01:33]} 36... Rd6 {[%clk 0:00:27.6]} 37. Kf2 {[%clk 0:01:32]} 37...
Rd2+ {[%clk 0:00:27.6]} 38. Kg3 {[%clk 0:01:32.2]} 38... Bf1 {[%clk 0:00:25.9]}
39. Be8 {[%clk 0:01:32.6]} 39... Rxg2+ {[%clk 0:00:23.8]} 40. Kf4 {[%clk
0:01:33.2]} 40... Bc4 {[%clk 0:00:23.3]} 41. Ke5 {[%clk 0:01:33.7]} 41... Rf2
{[%clk 0:00:21.6]} 42. f4 {[%clk 0:01:33.7]} 42... Kf8 {[%clk 0:00:21.9]} 43.
Bc6 {[%clk 0:01:32.6]} 43... Rxh2 {[%clk 0:00:21.5]} 44. Kf6 {[%clk 0:01:32.5]}
44... Kg8 {[%clk 0:00:19]} 45. Ra8+ {[%clk 0:01:32.4]} 45... Kh7 {[%clk
0:00:19.7]} 46. Bd5 {[%clk 0:01:22.8]} 46... Bxd5 {[%clk 0:00:19.1]} 47. exd5
{[%clk 0:01:23.7]} 47... Rd2 {[%clk 0:00:19.4]} 48. Ke5 {[%clk 0:01:10.1]} 48...
Rd3 {[%clk 0:00:18]} 49. d6 {[%clk 0:01:10.3]} 49... Rxc3 {[%clk 0:00:18.5]} 50.
d7 {[%clk 0:01:10.7]} 50... Rd3 {[%clk 0:00:16.3]} 51. d8=Q {[%clk 0:01:10.5]}
51... Rxd8 {[%clk 0:00:17]} 52. Rxd8 {[%clk 0:01:11.2]} 52... h5 {[%clk
0:00:14.7]} 53. Rb8 {[%clk 0:01:11.2]} 53... a3 {[%clk 0:00:13.9]} 54. Rxb5
{[%clk 0:01:11.8]} 54... h4 {[%clk 0:00:13.9]} 55. Ra5 {[%clk 0:01:11.9]} 55...
Kh6 {[%clk 0:00:12.8]} 56. Rxa3 {[%clk 0:01:12.5]} 56... Kh5 {[%clk 0:00:13.3]}
57. f5 {[%clk 0:01:11.1]} 57... g5 {[%clk 0:00:09.1]} 58. f6 {[%clk 0:01:09.5]}
58... g4 {[%clk 0:00:09]} 59. Kf4 {[%clk 0:01:08.1]} 59... g3 {[%clk 0:00:08.5]}
60. Ra2 {[%clk 0:01:07.1]} 60... Kg6 {[%clk 0:00:07.6]} 61. Kg4 {[%clk 0:01:07]}
61... Kxf6 {[%clk 0:00:08.2]} 62. Kxh4 {[%clk 0:01:07.5]} 1-0

[Event "Early-Titled-Tuesday-Blitz-April-16-2024"]
[Site "Chess.com"]
[Date "2024.04.16"]
[Round "7"]
[White "Karttunen"]
[Black "Koalaskakistis"]
[Result "1-0"]
[WhiteElo "2693"]
[BlackElo "2565"]
[TimeControl "180+1"]
[EndTime "9:21:06 PDT"]
[Termination "Karttunen won by resignation"]

1. d4 {[%clk 0:03:00.9]} 1... d5 {[%clk 0:02:41.2]} 2. c4 {[%clk 0:02:59]} 2...
dxc4 {[%clk 0:02:40.5]} 3. e3 {[%clk 0:02:56.9]} 3... Nf6 {[%clk 0:02:40.1]} 4.
Bxc4 {[%clk 0:02:56.2]} 4... a6 {[%clk 0:02:40]} 5. Be2 {[%clk 0:02:55]} 5... c5
{[%clk 0:02:39.7]} 6. Nf3 {[%clk 0:02:51.3]} 6... e6 {[%clk 0:02:39.3]} 7. O-O
{[%clk 0:02:49.5]} 7... Nc6 {[%clk 0:02:35.3]} 8. dxc5 {[%clk 0:02:45.5]} 8...
Bxc5 {[%clk 0:02:30.6]} 9. Qxd8+ {[%clk 0:02:42.7]} 9... Kxd8 {[%clk 0:02:30.4]}
10. b3 {[%clk 0:02:29.3]} 10... Ke7 {[%clk 0:02:29.3]} 11. Nc3 {[%clk
0:02:27.5]} 11... b5 {[%clk 0:02:20.6]} 12. Bb2 {[%clk 0:02:27.2]} 12... Bb7
{[%clk 0:02:20.7]} 13. Rac1 {[%clk 0:02:26.7]} 13... Bd6 {[%clk 0:02:17.9]} 14.
Nd2 {[%clk 0:01:58.7]} 14... Ne5 {[%clk 0:01:59.5]} 15. h3 {[%clk 0:01:44.5]}
15... Rac8 {[%clk 0:01:53.5]} 16. f4 {[%clk 0:01:42.3]} 16... Ned7 {[%clk
0:01:53.1]} 17. g4 {[%clk 0:01:27.6]} 17... h6 {[%clk 0:01:38.1]} 18. Kf2 {[%clk
0:01:22.4]} 18... Bc5 {[%clk 0:01:36.4]} 19. Bf3 {[%clk 0:01:13.8]} 19... Bxf3
{[%clk 0:01:36.3]} 20. Kxf3 {[%clk 0:01:14.1]} 20... g5 {[%clk 0:01:29.9]} 21.
Nce4 {[%clk 0:00:57]} 21... Bb4 {[%clk 0:01:00.9]} 22. Nxf6 {[%clk 0:00:47.5]}
22... Nxf6 {[%clk 0:00:42.2]} 23. Bxf6+ {[%clk 0:00:27.5]} 23... Kxf6 {[%clk
0:00:42.2]} 24. Ne4+ {[%clk 0:00:27.9]} 24... Ke7 {[%clk 0:00:36.2]} 25. Rxc8
{[%clk 0:00:22.9]} 25... Rxc8 {[%clk 0:00:35.8]} 26. fxg5 {[%clk 0:00:23.4]}
26... hxg5 {[%clk 0:00:35.6]} 27. Nxg5 {[%clk 0:00:24.2]} 27... f5 {[%clk
0:00:22.2]} 28. gxf5 {[%clk 0:00:20.4]} 28... exf5 {[%clk 0:00:22.7]} 29. h4
{[%clk 0:00:20.9]} 29... Kf6 {[%clk 0:00:22.5]} 30. Rf2 {[%clk 0:00:17.8]} 30...
Rc3 {[%clk 0:00:21.3]} 31. Nh3 {[%clk 0:00:16.3]} 31... Bc5 {[%clk 0:00:19.2]}
32. Re2 {[%clk 0:00:16.8]} 32... Ke5 {[%clk 0:00:17.9]} 33. Nf4 {[%clk
0:00:17.1]} 33... a5 {[%clk 0:00:15.9]} 34. h5 {[%clk 0:00:17.2]} 34... Bf8
{[%clk 0:00:15.8]} 35. Ng6+ {[%clk 0:00:16.9]} 35... Kf6 {[%clk 0:00:15.8]} 36.
Nxf8 {[%clk 0:00:17.8]} 36... a4 {[%clk 0:00:15.5]} 37. Ng6 {[%clk 0:00:17.3]}
37... axb3 {[%clk 0:00:14.5]} 38. axb3 {[%clk 0:00:18.2]} 38... Rxb3 {[%clk
0:00:15.4]} 39. Nf4 {[%clk 0:00:18]} 39... b4 {[%clk 0:00:15]} 40. h6 {[%clk
0:00:18]} 40... Rb1 {[%clk 0:00:13.8]} 41. Rh2 {[%clk 0:00:18]} 41... Rf1+
{[%clk 0:00:12.6]} 42. Ke2 {[%clk 0:00:18.1]} 1-0